[Event "3rd Sharjah Challengers 2023"]
[Site "Sharjah"]
[Date "2023.05.20"]
[Round "4.5"]
[White "Nigmatov, Ortik"]
[Black "Liyanage, Ranindu Dilshan"]
[Result "1-0"]
[ECO "C11"]
[WhiteElo "2438"]
[BlackElo "2342"]
[Annotator "TA"]
[PlyCount "93"]
[EventDate "2023.05.16"]
[EventType "swiss"]
[EventCountry "UAE"]
[SourceTitle "playchess.com"]
[Source "ChessBase"]
[SourceQuality "1"]
[TimeControl "5400+30"]

{[%evp 22,93,22,16,26,20,24,19,22,8,14,14,14,14,30,31,22,0,41,16,88,45,85,38,162,162,162,150,184,173,312,321,306,313,304,333,303,289,320,310,285,259,274,260,253,245,370,386,362,383,784,752,785,729,1429,1353,1412,1257,1172,1126,968,982,29968,29970,29977,29978,29979,29980,29980,29981,29981,29982,29982,29983]} 1. e4 {[%emt 0:00:08][%cal Be2e4,Be4e5][%mdl 32]} e6 {[%emt 0:00:17]} 2. d4 {[%emt 0:00:08]} d5 {[%emt 0:00:08]} 3. Nc3 {[%emt 0:00:07]} Nf6 {[%emt 0:00:15]} 4. e5 {[%emt 0:00:11]} Nfd7 {[%emt 0:00:08]} 5. f4 {[%emt 0:00:10]} c5 {[%emt 0:00:24]} 6. Nf3 {[%emt 0:00:06]} Nc6 {[%emt 0:00:05]} 7. Be3 {[%emt 0:00:05]} a6 {[%emt 0:00:14]} 8. a3 {[%emt 0:00:14]} cxd4 {[%emt 0:00:32]} 9. Nxd4 {[%emt 0:00:06]} Bc5 {[%emt 0:00:14]} 10. Qd2 {[%emt 0:00:12]} Nxd4 {[%emt 0:00:31]} 11. Bxd4 {[%emt 0:00:09]} Bxd4 {[%emt 0:00:04]} 12. Qxd4 {[%emt 0:00:09]} Qb6 {[%emt 0:00:05] C11: French: Classical System: 4 e5 and 4 Bg5 dxe4.} 13. Qxb6 {[%emt 0:02:38]} Nxb6 {[%emt 0:00:07][%cal Bd7b6,Bb6a4,Ba4c5][%mdl 32]} 14. Bd3 {[%emt 0:05:18]} Bd7 {[%emt 0:02:05] The position is equal.} 15. Ne2 {[%emt 0:00:44] [#]} Na4 $146 {[%emt 0:18:59]} ({Predecessor:} 15... Ke7 16. Nd4 g6 17. Ke2 h5 18. h4 Na4 19. b3 Nc5 20. a4 a5 {0-1 Shevchenko,K (2649)-Carlsen,M (2859) MrDodgy Online Inv Finals 3rd blitz 2022 (2.4)}) 16. b3 {[%emt 0:02:03]} Nc5 {[%emt 0:01:32]} 17. Nd4 {[%emt 0:00:23]} f5 {[%emt 0:05:39]} 18. Kd2 {[%emt 0:08:32]} Ke7 {[%emt 0:00:52]} 19. b4 {[%emt 0:31:13]} Na4 {[%emt 0:07:34]} 20. g4 {[%emt 0:01:06]} g6 {[%emt 0:02:08]} (20... fxg4 $11 {keeps the balance.} 21. Rag1 h5) 21. Rhg1 {[%emt 0:01:45]} Rhg8 {[%emt 0:01:54]} 22. Rg3 {[%emt 0:00:38] White is more active.} (22. gxf5 $16 {And now f6+ would win.} exf5 23. h4) 22... Raf8 {[%emt 0:07:04] Loses the game.} ({Better is} 22... fxg4 $14 23. Rxg4 Rac8) 23. gxf5 $18 {[%emt 0:02:46]} gxf5 {[%emt 0:03:29] [#]} 24. Rag1 $1 $36 {[%emt 0:00:09][%mdl 2048] White is really pushing.} Rxg3 {[%emt 0:03:04]} 25. Rxg3 {[%emt 0:01:01]} Be8 {[%emt 0:00:15]} (25... Nb6 $142 26. Rh3 Rf7) 26. c4 {[%emt 0:02:47] aiming for cxd5.} Nb6 {[%emt 0:03:11]} 27. c5 {[%emt 0:01:49]} Na8 {[%emt 0:00:18] [#]} 28. c6 $1 {[%emt 0:08:03][%mdl 576] Deflection} Bxc6 {[%emt 0:04:25]} 29. Nxc6+ {[%emt 0:05:52]} bxc6 {[%emt 0:00:06]} 30. Bxa6 {[%emt 0:00:48][%mdl 4096] Endgame KRB-KRN} Nb6 {[%emt 0:02:45]} 31. Bb7 {[%emt 0:01:24][%cal Od2c3] Dodges Ra8. Black must now prevent Kc3!} Nc4+ {[%emt 0:00:27]} 32. Ke2 {[%emt 0:00:41]} Kf7 {[%emt 0:00:22]} 33. Bxc6 {[%emt 0:00:38]} Rc8 {[%emt 0:00:31]} (33... Rb8 {was necessary.} 34. Rh3 h5 35. Rxh5 Rb6) 34. Bb5 {[%emt 0:01:13]} Nb6 {[%emt 0:01:56]} 35. Kd2 {[%emt 0:00:14] Against Rc2+} Nc4+ $2 {[%emt 0:00:43]} (35... d4 36. Rh3 Nd5 37. Rxh7+ Kg6) 36. Bxc4 {[%emt 0:00:20]} Rxc4 {[%emt 0:00:07] KR-KR} 37. b5 {[%emt 0:00:36][%cal Bb4b5,Bb5b6][%mdl 32]} Ke7 {[%emt 0:00:54]} 38. Rg7+ {[%emt 0:00:22]} Kd8 {[%emt 0:00:06]} 39. b6 {[%emt 0:02:23] b7 would kill now.} Kc8 {[%emt 0:00:15]} 40. Rxh7 {[%emt 0:00:43][%cal Oh7c7] White threatens Rc7+! and mate.} Rxf4 {[%emt 0:00:59]} 41. h4 {[%emt 0:02:00][%cal Bh2h4,Bh4h5,Bh5h6,Bh6h7][%mdl 32]} Ra4 {[%emt 0:05:44]} 42. h5 {[%emt 0:01:18] White mates.} Rxa3 {[%emt 0:00:45]} 43. h6 {[%emt 0:00:09]} Rb3 {[%emt 0:00:54]} 44. Rg7 {[%emt 0:01:18]} Rxb6 {[%emt 0:00:09]} 45. h7 {[%emt 0:00:07][%cal Rh7h8]} Rb2+ {[%emt 0:00:04]} 46. Kc3 {[%emt 0:00:06][%cal Rh7h8]} Rh2 {[%emt 0:00:17]} 47. Rg8+ {[%emt 0:00:07] Weighted Error Value: White=0.06 (flawless) /Black=0.53} 1-0

[Event "3rd Sharjah Challengers 2023"]
[Site "Sharjah"]
[Date "2023.05.20"]
[Round "4.6"]
[White "Sibashvili, Giorgi"]
[Black "Vandenbussche, Thibaut"]
[Result "1-0"]
[ECO "D34"]
[WhiteElo "2408"]
[BlackElo "2437"]
[Annotator "TA"]
[PlyCount "119"]
[EventDate "2023.05.16"]
[EventType "swiss"]
[EventCountry "UAE"]
[SourceTitle "playchess.com"]
[Source "ChessBase"]
[SourceQuality "1"]
[TimeControl "5400+30"]

{[%evp 24,119,32,34,66,61,50,50,45,63,91,106,100,47,70,69,85,94,88,85,97,96,85,69,70,78,89,0,0,0,0,0,107,93,150,150,145,147,149,144,144,131,133,128,142,157,331,327,303,133,142,141,134,135,119,122,296,289,371,369,364,323,316,309,472,465,1093,998,998,781,1233,1260,1212,1212,1117,1113,1107,1133,12832,12818,8639,5584,12832,12834,12837,12837,12837,12836,12839,12839,12840,12840,12842,12843,12843,12843,12844,12844]} 1. d4 {[%emt 0:00:03]} d5 {[%emt 0:00:05]} 2. c4 {[%emt 0:00:38]} e6 {[%emt 0:00:05]} 3. Nf3 {[%emt 0:00:36]} c5 {[%emt 0:00:06]} 4. cxd5 {[%emt 0:01:24]} exd5 {[%emt 0:00:03]} 5. Nc3 {[%emt 0:00:08]} Nc6 {[%emt 0:00:09]} 6. g3 {[%emt 0:00:07]} Nf6 {[%emt 0:00:07]} 7. Bg2 {[%emt 0:00:05]} Be7 {[%emt 0:00:06]} 8. O-O {[%emt 0:00:42]} O-O {[%emt 0:00:08]} 9. b3 {[%emt 0:01:42]} Ne4 {[%emt 0:02:17]} 10. Bb2 {[%emt 0:00:32]} Bf6 {[%emt 0:00:33]} 11. Na4 {[%emt 0:01:22]} Re8 {[%emt 0:04:39]} 12. Rc1 {[%emt 0:08:01]} cxd4 {[%emt 0:00:17]} 13. Nxd4 {[%emt 0:00:57] [#]} h5 $146 {[%emt 0:18:21] D34: Tarrasch Defence: 6 g3 Nf6 7 Bg2 Be7.} ({Predecessor:} 13... Bd7 14. Nc5 Nxd4 15. Bxd4 Bb5 16. Re1 b6 17. Nxe4 dxe4 18. Bxf6 Qxd1 19. Rexd1 gxf6 20. e3 Be2 21. Rd7 {½-½ Sargissian,G (2702)-Harikrishna,P (2753) China Elite Mind rapid 2016 (7)}) 14. Nxc6 {[%emt 0:04:58]} bxc6 {[%emt 0:01:26]} 15. Rxc6 {[%emt 0:02:13]} Bxb2 {[%emt 0:06:29] White is slightly better.} 16. Nxb2 {[%emt 0:00:09]} Bb7 {[%emt 0:00:30]} 17. Rc2 {[%emt 0:05:27]} d4 {[%emt 0:01:24]} 18. Na4 {[%emt 0:14:13]} (18. e3 $16) 18... Qf6 {[%emt 0:04:34]} 19. Rc7 {[%emt 0:09:24]} Nc3 {[%emt 0:09:55]} 20. Nxc3 {[%emt 0:01:31]} Bxg2 {[%emt 0:00:13]} 21. Kxg2 {[%emt 0:00:12]} dxc3 {[%emt 0:00:06]} 22. Qd3 {[%emt 0:02:19]} Rac8 {[%emt 0:07:01]} 23. Rxc8 {[%emt 0:00:43]} (23. Rxa7 $2 c2 24. Rc1 Red8 25. Rxc2 Rxd3 26. Rxc8+ Rd8 27. Rxd8+ Qxd8 $19) 23... Rxc8 $16 {[%emt 0:00:01][%mdl 4096] Endgame KQR-KQR} 24. Rc1 {[%emt 0:00:21]} h4 {[%emt 0:02:39][%cal Oh4h3]} 25. Rc2 {[%emt 0:09:54]} (25. f3 $16) 25... h3+ $1 $11 {[%emt 0:04:47][%mdl 64] Deflection} 26. Kxh3 {[%emt 0:06:03] e4 would be deadly.} Qxf2 {[%emt 0:01:23]} 27. Qf3 {[%emt 0:02:24]} Qe1 {[%emt 0:03:56] [#]} (27... Qg1 $11 {keeps the balance.}) 28. Kg2 $1 $16 {[%emt 0:01:19]} Qd1 {[%emt 0:02:59] [#]} ({Black should try} 28... Qb1 29. Rxc3 Rxc3 30. Qxc3 Qxa2) 29. Qd3 $1 $36 {[%emt 0:01:26][%mdl 2048] Keeping Black busy.} Qe1 {[%emt 0:01:12]} 30. Qd7 {[%emt 0:04:06][%csl LRa7,LRc8] Against Rc6} Rc5 {[%emt 0:03:52]} 31. Qd8+ {[%emt 0:02:41]} Kh7 {[%emt 0:00:08]} 32. Qd4 {[%emt 0:01:04]} Qb1 {[%emt 0:17:15]} 33. Qd3+ {[%emt 0:02:23]} (33. Qxc5 $6 Qxc2 34. Kf2 (34. Qxa7 $2 Qxe2+ 35. Qf2 Qxf2+ 36. Kxf2 c2 $19) 34... Qd2 $11) 33... f5 {[%emt 0:01:55]} 34. g4 {[%emt 0:09:57]} Rd5 {[%emt 0:04:03]} (34... Kg6 $16 {was necessary.} 35. h3 (35. Rxc3 Qxd3 36. Rxd3 fxg4 $16) 35... Kh7 36. Rxc3 {[%mdl 64] Discovered Attack} (36. gxf5 Rd5 $16) 36... Qxd3 37. Rxd3 Rc2) 35. Qh3+ $18 {[%emt 0:01:29]} (35. Qxd5 Qxc2 36. Kf2 fxg4 $11) (35. Qxc3 fxg4 36. Qb2 Qxb2 37. Rxb2 Kg6 $16) 35... Kg6 {[%emt 0:02:49]} 36. Rxc3 {[%emt 0:00:47]} (36. Qxc3 $6 Qd1 37. Qc8 Kg5 $18) (36. Qh5+ $18 {has better winning chances.} Kf6 37. g5+ (37. Rxc3 Qe4+ 38. Kh3 f4 $18) 37... Ke7 38. Rxc3) 36... Qe4+ $16 {[%emt 0:01:20]} 37. Qf3 {[%emt 0:00:12]} Qxg4+ {[%emt 0:01:00]} 38. Qxg4+ {[%emt 0:00:42]} fxg4 {[%emt 0:00:01] KR-KR} 39. Rc6+ {[%emt 0:01:21]} Kf5 $2 {[%emt 0:00:17]} (39... Kh5 $16) 40. Ra6 $18 {[%emt 0:00:45]} Rd2 {[%emt 0:01:27]} 41. Kf2 {[%emt 0:00:34]} ({Less strong is} 41. Rxa7 Rxe2+ 42. Kg3 Re3+ 43. Kf2 Rd3 $16) 41... Rd7 {[%emt 0:00:18]} 42. Kg3 {[%emt 0:01:00]} Re7 {[%emt 0:00:45]} 43. Ra5+ {[%emt 0:00:13]} Ke4 {[%emt 0:00:37]} (43... Kg6 {might work better.} 44. Kxg4 Rxe2 45. Ra6+ (45. Rxa7 Rxh2 46. a4 Rg2+ 47. Kf4 Rb2 $18) 45... Kf7 46. Rxa7+ Kf6) 44. Kxg4 {[%emt 0:00:00] Kg5 is the strong threat. White is clearly winning.} Ke3 {[%emt 0:00:00]} (44... Re6 $142 45. Rxa7 Rg6+ 46. Kh3 Kd5) 45. Kf5 {[%emt 0:00:33] Strongly threatening Re5+.} Rc7 {[%emt 0:00:46]} 46. Re5+ {[%emt 0:00:53]} Kd4 {[%emt 0:00:21]} 47. Re4+ {[%emt 0:00:41]} Kd5 {[%emt 0:00:18] [#]} 48. Rc4 $1 {[%emt 0:02:51]} Rf7+ {[%emt 0:00:35]} 49. Kg6 {[%emt 0:00:43]} Rf2 {[%emt 0:00:04]} 50. h4 {[%emt 0:01:17][%cal Bh2h4,Bh4h5][%mdl 32]} ({Weaker is} 50. Kxg7 Rxh2 51. e4+ Ke5 $18) 50... Rxe2 {[%emt 0:00:32]} 51. Ra4 {[%emt 0:00:38]} Re7 {[%emt 0:00:26]} 52. h5 {[%emt 0:00:12]} Kc5 {[%emt 0:01:23]} 53. Rf4 {[%emt 0:00:22]} a5 {[%emt 0:01:07]} 54. Rf7 {[%emt 0:01:34]} Re2 {[%emt 0:00:02]} 55. Rf5+ {[%emt 0:00:28]} Kb6 {[%emt 0:00:33]} 56. Kxg7 {[%emt 0:01:13]} Rg2+ {[%emt 0:00:12]} 57. Kf7 {[%emt 0:00:15]} Rxa2 {[%emt 0:00:08]} 58. h6 {[%emt 0:00:08]} Rh2 {[%emt 0:00:59]} 59. Kg6 {[%emt 0:00:21]} Rg2+ {[%emt 0:00:36]} 60. Rg5 {[%emt 0:00:11] Weighted Error Value: White=0.13 (very precise) /Black=0.33} 1-0

[Event "3rd Sharjah Challengers 2023"]
[Site "Sharjah"]
[Date "2023.05.20"]
[Round "4.7"]
[White "Saydaliev, Saidakbar"]
[Black "Eiti, Bashir"]
[Result "1/2-1/2"]
[ECO "C41"]
[WhiteElo "2434"]
[BlackElo "2346"]
[Annotator "TA"]
[PlyCount "101"]
[EventDate "2023.05.16"]
[EventType "swiss"]
[EventCountry "UAE"]
[SourceTitle "playchess.com"]
[Source "ChessBase"]
[SourceQuality "1"]
[TimeControl "5400+30"]

{[%evp 9,101,12,21,14,48,68,136,19,54,17,14,28,27,12,27,22,16,11,12,9,5,18,11,6,16,0,0,0,4,-62,-75,-45,-78,-96,-88,-104,-95,-97,-91,-106,-102,-104,-97,-113,-112,-115,-104,-94,-98,-98,-98,-89,-79,-86,-84,-90,-83,-87,-49,-52,-49,-58,-56,-49,-41,-54,-46,-45,-44,-54,-8,-44,-43,-43,-44,-38,-19,-19,-18,-27,-10,-56,-25,-25,-18,-18,-18,-18,-18,-18,-6,-18,-18,-18]} 1. e4 {[%emt 0:00:04]} d6 {[%emt 0:00:25]} 2. d4 {[%emt 0:00:19]} Nf6 {[%emt 0:00:04]} 3. Nc3 {[%emt 0:00:12]} Nbd7 {[%emt 0:00:05]} 4. Nf3 {[%emt 0:00:39]} e5 {[%emt 0:00:05]} 5. Rg1 {[%emt 0:02:01]} c6 {[%emt 0:01:31]} 6. g4 {[%emt 0:01:08] C41: Philidor Defence.} exd4 {[%emt 0:01:08]} (6... Qa5 {feels hotter.} 7. Qe2 Qb6 8. g5 exd4 9. e5 dxc3 10. exd6+ Kd8) 7. Nxd4 {[%emt 0:07:35] [#]} d5 $146 {[%emt 0:02:06]} ({Better is} 7... Nc5 $14) ({Predecessor:} 7... h6 8. Be3 d5 9. exd5 cxd5 10. Qe2 Be7 11. O-O-O O-O 12. g5 hxg5 13. Bxg5 Nc5 {1-0 Bartel,M (2627)-Bortnyk,O (2604) Speed Chess Q1 blitz 2022 (5)}) 8. Qe2 {[%emt 0:02:17] White is more active.} (8. exd5 $16 Qe7+ 9. Be3 (9. Qe2 Qxe2+ 10. Bxe2 Bc5 $16) 9... Nxd5 10. Nxd5 cxd5 11. Qd2) 8... Be7 {[%emt 0:25:24]} 9. e5 {[%emt 0:12:35]} (9. exd5 $5 {[%cal Rd5d6]} Nb6 10. Bg5 $11) 9... Ne4 {[%emt 0:03:23]} 10. Nxe4 {[%emt 0:00:14]} dxe4 {[%emt 0:00:05]} 11. Qxe4 {[%emt 0:01:08] Threatening e6.} Qa5+ {[%emt 0:02:24]} 12. Bd2 {[%emt 0:02:12]} (12. c3 $5 {[%cal Rc1f4]}) 12... Qxe5 {[%emt 0:00:08]} 13. Qxe5 {[%emt 0:00:25]} Nxe5 {[%emt 0:00:05][%cal Bd7e5,Be5g6,Bg6f4][%mdl 32]} 14. Be2 {[%emt 0:00:02]} O-O {[%emt 0:02:51]} 15. O-O-O {[%emt 0:02:39]} Re8 {[%emt 0:03:07]} 16. a4 {[%emt 0:21:13]} Bc5 {[%emt 0:07:43]} 17. Bc3 {[%emt 0:01:26]} Ng6 {[%emt 0:04:22]} 18. Bc4 {[%emt 0:02:40]} Nf4 {[%emt 0:05:10]} 19. Nf5 {[%emt 0:05:13]} (19. f3 $11) 19... Be6 $15 {[%emt 0:04:10]} (19... Bxf2 20. Rgf1 Bxf5 21. Rxf2 $16) 20. Bd3 {[%emt 0:15:32]} Bxf2 {[%emt 0:06:29] [#] Strongly threatening ...Bxf5.} 21. Rgf1 {[%emt 0:00:17]} Bxf5 {[%emt 0:06:21]} 22. Rxf2 {[%emt 0:04:01]} Nxd3+ {[%emt 0:00:30]} (22... Bxg4 $6 23. Rxf4 Bxd1 24. Kxd1 $11) 23. cxd3 {[%emt 0:00:02]} Be6 {[%emt 0:01:20]} (23... Bxg4 24. Rg1 $14) 24. a5 {[%emt 0:00:06]} Rad8 {[%emt 0:01:01]} ({Don't do} 24... Bxg4 25. Rg1 $14) 25. Kc2 {[%emt 0:01:06]} Rd5 {[%emt 0:04:44]} ({Reject} 25... Bxg4 $6 26. Rg1 h5 27. h3 Re2+ 28. Rxe2 Bxe2 29. Rxg7+ Kf8 30. Rg3 $11) 26. Rg1 {[%emt 0:01:13]} Red8 {[%emt 0:01:55]} 27. Rg3 {[%emt 0:02:30]} c5 {[%emt 0:00:42]} 28. Re2 {[%emt 0:00:30]} b5 {[%emt 0:01:31]} 29. axb6 {[%emt 0:00:31]} axb6 {[%emt 0:00:03]} 30. Re5 {[%emt 0:00:17]} R5d6 {[%emt 0:03:07]} 31. Rg5 {[%emt 0:02:31]} g6 {[%emt 0:00:51]} 32. h4 {[%emt 0:00:01]} Bd7 {[%emt 0:02:29] [#] And now ...f6 would win.} 33. Re5 {[%emt 0:00:32]} f6 {[%emt 0:03:36]} 34. Re7 {[%emt 0:00:34]} Re8 {[%emt 0:00:59]} 35. Rxe8+ {[%emt 0:02:09]} Bxe8 {[%emt 0:00:03][%mdl 4096] Endgame KRB-KRB} 36. g5 {[%emt 0:01:07]} f5 {[%emt 0:00:31]} 37. Re3 {[%emt 0:00:34]} Kf7 {[%emt 0:00:10]} 38. Be5 {[%emt 0:00:03]} Re6 {[%emt 0:00:34]} 39. Kd2 {[%emt 0:04:13]} Rc6 {[%emt 0:02:23]} (39... Bc6 $15) 40. d4 {[%emt 0:02:09]} cxd4 {[%emt 0:00:03]} 41. Bxd4 {[%emt 0:00:12]} Rd6 {[%emt 0:02:13]} 42. Kc3 {[%emt 0:00:26]} Bd7 {[%emt 0:00:31]} 43. Be5 {[%emt 0:00:19]} Rc6+ {[%emt 0:00:25]} 44. Kd4 {[%emt 0:00:02]} Rc2 {[%emt 0:00:29]} 45. b4 {[%emt 0:03:37]} (45. Bf6 $11 {is superior.}) 45... Bb5 {[%emt 0:00:32]} 46. Kd5 {[%emt 0:02:24]} Rd2+ {[%emt 0:01:18]} 47. Bd4 {[%emt 0:00:01] The position is equal.} Bd3 {[%emt 0:02:18]} ({Don't take} 47... f4 48. Re4 $14) 48. Ke5 {[%emt 0:00:39]} b5 {[%emt 0:00:24]} 49. Bc3 {[%emt 0:00:05]} Rd1 {[%emt 0:00:49]} 50. Re1 {[%emt 0:00:02]} Rxe1+ {[%emt 0:00:31]} 51. Bxe1 {[%emt 0:00:03] Weighted Error Value: White=0.14 (very precise) /Black=0.09 (flawless)} 1/2-1/2

[Event "3rd Sharjah Challengers 2023"]
[Site "Sharjah"]
[Date "2023.05.20"]
[Round "4.8"]
[White "Begmuratov, Khumoyun"]
[Black "Haznedaroglu, Kivanc"]
[Result "1/2-1/2"]
[ECO "B03"]
[WhiteElo "2387"]
[BlackElo "2418"]
[Annotator "TA"]
[PlyCount "55"]
[EventDate "2023.05.16"]
[EventType "swiss"]
[EventCountry "UAE"]
[SourceTitle "playchess.com"]
[Source "ChessBase"]
[SourceQuality "1"]
[TimeControl "5400+30"]

{[%evp 15,55,16,30,29,35,35,31,25,25,34,31,18,17,14,18,11,10,10,14,-12,0,0,7,-18,15,0,42,36,49,19,10,0,0,-15,-11,-11,-11,-11,-11,-12,0,-32]} 1. e4 {[%emt 0:00:42][%cal Be2e4,Be4e5][%mdl 32]} Nf6 {[%emt 0:00:25][%cal Bg8f6,Bf6d5,Bd5b6][%mdl 32]} 2. e5 {[%emt 0:01:17]} Nd5 {[%emt 0:00:02]} 3. d4 {[%emt 0:03:10]} d6 {[%emt 0:00:11]} 4. c4 {[%emt 0:00:23]} Nb6 {[%emt 0:00:03]} 5. exd6 {[%emt 0:00:16]} exd6 {[%emt 0:00:02]} 6. Nf3 {[%emt 0:01:59]} Be7 {[%emt 0:01:11]} 7. Be2 {[%emt 0:01:33] 7.h3 is the fancy move.} O-O {[%emt 0:01:02]} 8. O-O {[%emt 0:01:30]} Bf5 {[%emt 0:02:57]} 9. Nc3 {[%emt 0:04:24] B03: Alekhine's Defence: Four Pawns Attack.} Bf6 {[%emt 0:02:20]} 10. Be3 {[%emt 0:08:11]} c6 {[%emt 0:04:31] [#]} 11. b3 $146 {[%emt 0:12:15] White is slightly better.} ({Predecessor:} 11. Qd2 d5 12. b3 dxc4 13. bxc4 Be6 14. c5 Nc4 15. Bxc4 Bxc4 16. Rfb1 b6 17. Ne4 {0-1 Peczely,S (2255)-Plichta,K (2336) Zalakaros op 35th 2016 (5)}) 11... Na6 {[%emt 0:03:36]} 12. Qd2 {[%emt 0:04:40]} Nc7 {[%emt 0:03:48]} 13. Bd3 {[%emt 0:07:49]} Bxd3 {[%emt 0:07:55]} 14. Qxd3 {[%emt 0:00:02]} d5 {[%emt 0:00:10]} 15. c5 {[%emt 0:03:08]} Nd7 {[%emt 0:04:23]} 16. b4 {[%emt 0:04:24]} a6 {[%emt 0:00:08]} 17. Nd2 {[%emt 0:04:14]} Re8 {[%emt 0:04:23]} 18. Nb3 {[%emt 0:01:56]} Ne6 {[%emt 0:01:13]} 19. f4 {[%emt 0:03:29]} Ndf8 {[%emt 0:14:44]} 20. Rae1 {[%emt 0:17:15]} h6 {[%emt 0:07:38]} 21. g3 {[%emt 0:03:02]} Re7 {[%emt 0:02:52]} 22. Re2 {[%emt 0:05:53]} Qd7 {[%emt 0:01:48] The position is equal.} 23. Rfe1 {[%emt 0:01:21]} Rae8 {[%emt 0:00:02]} 24. a4 {[%emt 0:01:28]} h5 {[%emt 0:06:07]} 25. f5 {[%emt 0:02:51]} Ng5 {[%emt 0:02:08]} 26. Bxg5 {[%emt 0:00:14]} Bxg5 {[%emt 0:00:27]} 27. h4 {[%emt 0:01:48]} Bh6 {[%emt 0:01:57]} 28. Rxe7 {[%emt 0:01:49] Weighted Error Value: White=0.08 (flawless) /Black=0.05 (flawless)} (28. Qf3 $5 {[%cal Rf3h5]}) 1/2-1/2